[Event "Early-Titled-Tuesday-Blitz-October-24-2023"]
[Site "Chess.com"]
[Date "2023.10.24"]
[Round "10"]
[White "GM_DarwinLaylo"]
[Black "ama18"]
[Result "1-0"]
[WhiteElo "2645"]
[BlackElo "2521"]
[TimeControl "180+1"]
[EndTime "9:53:19 PDT"]
[Termination "GM_DarwinLaylo won on time"]

1. c4 {[%clk 0:03:00.9]} 1... Nf6 {[%clk 0:02:57.3]} 2. Nc3 {[%clk 0:03:00.8]}
2... e6 {[%clk 0:02:57.4]} 3. e4 {[%clk 0:03:00.4]} 3... d6 {[%clk 0:02:57.5]}
4. d4 {[%clk 0:02:59.1]} 4... g6 {[%clk 0:02:57.4]} 5. f4 {[%clk 0:02:57.5]}
5... Bg7 {[%clk 0:02:57.3]} 6. Nf3 {[%clk 0:02:56.8]} 6... Nbd7 {[%clk
0:02:57.9]} 7. e5 {[%clk 0:02:55.4]} 7... Ng8 {[%clk 0:02:49.2]} 8. b3 {[%clk
0:02:41.8]} 8... Ne7 {[%clk 0:02:47]} 9. Ba3 {[%clk 0:02:33.6]} 9... O-O {[%clk
0:02:45]} 10. exd6 {[%clk 0:02:29.8]} 10... cxd6 {[%clk 0:02:45.2]} 11. Bxd6
{[%clk 0:02:28.9]} 11... Nf5 {[%clk 0:02:39.8]} 12. Bxf8 {[%clk 0:02:25.3]}
12... Qxf8 {[%clk 0:02:40.7]} 13. Qd2 {[%clk 0:02:23.8]} 13... Qb4 {[%clk
0:02:24.7]} 14. g4 {[%clk 0:02:18.6]} 14... Nd6 {[%clk 0:02:16.8]} 15. Bg2
{[%clk 0:02:14.3]} 15... h5 {[%clk 0:01:57.4]} 16. gxh5 {[%clk 0:02:12.1]} 16...
Nf5 {[%clk 0:01:57.4]} 17. hxg6 {[%clk 0:02:09.6]} 17... fxg6 {[%clk 0:01:58.3]}
18. O-O {[%clk 0:02:06.3]} 18... Nf6 {[%clk 0:01:52.2]} 19. Ne5 {[%clk
0:02:03.5]} 19... Nh5 {[%clk 0:01:50.3]} 20. Rad1 {[%clk 0:01:58.8]} 20... Rb8
{[%clk 0:01:44.8]} 21. Ne4 {[%clk 0:01:57.7]} 21... Qb6 {[%clk 0:01:44.3]} 22.
c5 {[%clk 0:01:55]} 22... Qd8 {[%clk 0:01:42.9]} 23. Ng5 {[%clk 0:01:46.5]}
23... Bd7 {[%clk 0:01:31.9]} 24. d5 {[%clk 0:01:44.9]} 24... Bb5 {[%clk
0:01:21.5]} 25. Rf2 {[%clk 0:01:42.1]} 25... Qe7 {[%clk 0:01:08.4]} 26. Nxe6
{[%clk 0:01:34]} 26... Qh4 {[%clk 0:01:03.9]} 27. Nxg6 {[%clk 0:01:28.5]} 27...
Qg4 {[%clk 0:00:56.4]} 28. Ne5 {[%clk 0:01:27.2]} 28... Bxe5 {[%clk 0:00:48.8]}
29. fxe5 {[%clk 0:01:27.1]} 29... Ne3 {[%clk 0:00:48.2]} 30. Re1 {[%clk
0:01:25]} 30... Nxd5 {[%clk 0:00:27.9]} 31. Qxd5 {[%clk 0:01:22]} 31... Bc6
{[%clk 0:00:28.2]} 32. Qd6 {[%clk 0:01:18]} 32... Re8 {[%clk 0:00:19]} 33. Nd4
{[%clk 0:01:02.7]} 33... Nf4 {[%clk 0:00:16]} 34. Nxc6 {[%clk 0:00:56.4]} 34...
Nh3+ {[%clk 0:00:12.6]} 35. Kf1 {[%clk 0:00:56.3]} 35... Nxf2 {[%clk 0:00:12.8]}
36. Kxf2 {[%clk 0:00:54.9]} 36... Rf8+ {[%clk 0:00:12.1]} 37. Kg1 {[%clk
0:00:53.6]} 37... Qh4 {[%clk 0:00:07.4]} 38. Ne7+ {[%clk 0:00:43]} 38... Kh7
{[%clk 0:00:04.3]} 39. Qg6+ {[%clk 0:00:22]} 39... Kh8 {[%clk 0:00:04.5]} 40.
Rd1 {[%clk 0:00:17.3]} 40... Qf2+ {[%clk 0:00:04.2]} 41. Kh1 {[%clk 0:00:17.1]}
41... Qh4 {[%clk 0:00:03.2]} 42. Nf5 {[%clk 0:00:15.9]} 1-0

[Event "Early-Titled-Tuesday-Blitz-October-24-2023"]
[Site "Chess.com"]
[Date "2023.10.24"]
[Round "10"]
[White "Mariia89"]
[Black "Kostya0705"]
[Result "1-0"]
[WhiteElo "2183"]
[BlackElo "2577"]
[TimeControl "180+1"]
[EndTime "9:53:19 PDT"]
[Termination "Mariia89 won by resignation"]

1. d4 {[%clk 0:02:59.7]} 1... Nf6 {[%clk 0:02:19.1]} 2. Nf3 {[%clk 0:02:59.6]}
2... d5 {[%clk 0:02:18.3]} 3. c4 {[%clk 0:02:59.6]} 3... e6 {[%clk 0:02:18]} 4.
Nc3 {[%clk 0:02:59.5]} 4... dxc4 {[%clk 0:02:18.6]} 5. e4 {[%clk 0:02:59.2]}
5... b5 {[%clk 0:02:19.2]} 6. e5 {[%clk 0:02:58.1]} 6... Nd5 {[%clk 0:02:19.7]}
7. Nxb5 {[%clk 0:02:55.7]} 7... Nb6 {[%clk 0:02:19.7]} 8. a4 {[%clk 0:02:49.9]}
8... a6 {[%clk 0:02:16.8]} 9. Nc3 {[%clk 0:02:49.9]} 9... a5 {[%clk 0:02:17.7]}
10. Bg5 {[%clk 0:02:48.5]} 10... Be7 {[%clk 0:02:15.1]} 11. Bxe7 {[%clk
0:02:48.5]} 11... Qxe7 {[%clk 0:02:16]} 12. Nd2 {[%clk 0:02:42.8]} 12... Ba6
{[%clk 0:02:15.1]} 13. Be2 {[%clk 0:02:40.6]} 13... O-O {[%clk 0:02:14.3]} 14.
Bf3 {[%clk 0:02:39.5]} 14... Ra7 {[%clk 0:02:13.8]} 15. O-O {[%clk 0:02:38.3]}
15... Rd8 {[%clk 0:02:12.5]} 16. Nde4 {[%clk 0:02:37.7]} 16... N8d7 {[%clk
0:02:12.4]} 17. Qe2 {[%clk 0:02:31.8]} 17... c5 {[%clk 0:02:09.4]} 18. Rfd1
{[%clk 0:02:26.7]} 18... cxd4 {[%clk 0:02:04.4]} 19. Rxd4 {[%clk 0:02:26.2]}
19... Nxe5 {[%clk 0:02:02.7]} 20. Rad1 {[%clk 0:02:15.4]} 20... Rxd4 {[%clk
0:02:01.5]} 21. Rxd4 {[%clk 0:02:15.5]} 21... Nxf3+ {[%clk 0:02:02]} 22. Qxf3
{[%clk 0:02:14.6]} 22... Rd7 {[%clk 0:02:02.9]} 23. Rxd7 {[%clk 0:02:06.3]}
23... Qxd7 {[%clk 0:02:01.3]} 24. h4 {[%clk 0:02:06.8]} 24... h6 {[%clk
0:01:58.9]} 25. Nc5 {[%clk 0:02:03]} 25... Qc8 {[%clk 0:01:54.6]} 26. Nxa6
{[%clk 0:01:47.3]} 26... Qxa6 {[%clk 0:01:55.5]} 27. Qc6 {[%clk 0:01:47.8]}
27... Qa7 {[%clk 0:01:54.7]} 28. Nb5 {[%clk 0:01:44.5]} 28... Qb8 {[%clk
0:01:53.7]} 29. Nd6 {[%clk 0:01:40.9]} 29... Nxa4 {[%clk 0:01:46.9]} 30. Nxf7
{[%clk 0:00:45.2]} 30... Kxf7 {[%clk 0:01:24]} 31. Qxa4 {[%clk 0:00:44.4]} 31...
Qxb2 {[%clk 0:01:23.3]} 32. Qxc4 {[%clk 0:00:38.9]} 32... Qa1+ {[%clk
0:01:19.9]} 33. Kh2 {[%clk 0:00:36.7]} 33... Qe5+ {[%clk 0:01:12.4]} 34. g3
{[%clk 0:00:36.4]} 34... Ke7 {[%clk 0:01:11.8]} 35. f4 {[%clk 0:00:32.9]} 35...
Qd5 {[%clk 0:01:10.9]} 36. Qc7+ {[%clk 0:00:31.3]} 36... Kf6 {[%clk 0:01:10.2]}
37. Qc3+ {[%clk 0:00:29.7]} 37... e5 {[%clk 0:01:10.5]} 38. fxe5+ {[%clk
0:00:16.7]} 38... Qxe5 {[%clk 0:01:11.4]} 39. Qc6+ {[%clk 0:00:17.1]} 39... Ke7
{[%clk 0:01:09.8]} 40. Qb7+ {[%clk 0:00:16.7]} 40... Kd8 {[%clk 0:01:09.4]} 41.
Qa8+ {[%clk 0:00:16.5]} 41... Kc7 {[%clk 0:01:06.1]} 42. Qa7+ {[%clk 0:00:16.2]}
42... Kd8 {[%clk 0:01:01.8]} 43. Qa8+ {[%clk 0:00:15.9]} 43... Kd7 {[%clk
0:01:02.3]} 44. Qa7+ {[%clk 0:00:15]} 44... Qc7 {[%clk 0:01:02.8]} 45. Qd4+
{[%clk 0:00:14.6]} 45... Kc6 {[%clk 0:01:02]} 46. Qe4+ {[%clk 0:00:09.5]} 46...
Kb6 {[%clk 0:01:01.9]} 47. Qd4+ {[%clk 0:00:09.6]} 47... Kb5 {[%clk 0:01:01.9]}
48. Qb2+ {[%clk 0:00:08.1]} 48... Ka6 {[%clk 0:01:00.1]} 49. Qe2+ {[%clk
0:00:07.9]} 49... Ka7 {[%clk 0:00:59.4]} 50. Qe3+ {[%clk 0:00:07.7]} 50... Qb6
{[%clk 0:00:58.7]} 51. Qe7+ {[%clk 0:00:07.8]} 51... Qb7 {[%clk 0:00:57.5]} 52.
Qc5+ {[%clk 0:00:08.2]} 52... Ka6 {[%clk 0:00:57.4]} 53. Qd6+ {[%clk 0:00:08.1]}
53... Qb6 {[%clk 0:00:57.1]} 54. Qd3+ {[%clk 0:00:07.8]} 54... Ka7 {[%clk
0:00:54.9]} 55. Qd7+ {[%clk 0:00:08]} 55... Qb7 {[%clk 0:00:55.4]} 56. Qd4+
{[%clk 0:00:08.3]} 56... Ka6 {[%clk 0:00:54.8]} 57. Qd3+ {[%clk 0:00:08.7]}
57... Kb6 {[%clk 0:00:54.6]} 58. Qd4+ {[%clk 0:00:08.9]} 58... Kc6 {[%clk
0:00:51.7]} 59. Qe4+ {[%clk 0:00:09.5]} 59... Kd7 {[%clk 0:00:51.8]} 60. Qxb7+
{[%clk 0:00:09.1]} 60... Kd6 {[%clk 0:00:52]} 61. Qa6+ {[%clk 0:00:09.2]} 1-0

[Event "Early-Titled-Tuesday-Blitz-October-24-2023"]
[Site "Chess.com"]
[Date "2023.10.24"]
[Round "10"]
[White "blitzking1729"]
[Black "Beca95"]
[Result "0-1"]
[WhiteElo "2803"]
[BlackElo "2928"]
[TimeControl "180+1"]
[EndTime "9:53:20 PDT"]
[Termination "Beca95 won by checkmate"]

1. d4 {[%clk 0:03:00.5]} 1... Nf6 {[%clk 0:02:59.8]} 2. Bg5 {[%clk 0:03:00]}
2... e6 {[%clk 0:02:57.3]} 3. Nd2 {[%clk 0:02:59.6]} 3... h6 {[%clk 0:02:56.7]}
4. Bh4 {[%clk 0:02:59.2]} 4... c5 {[%clk 0:02:51.5]} 5. e4 {[%clk 0:02:59]} 5...
g5 {[%clk 0:02:40]} 6. Bg3 {[%clk 0:02:58.5]} 6... cxd4 {[%clk 0:02:40.4]} 7. e5
{[%clk 0:02:57.7]} 7... Nd5 {[%clk 0:02:40]} 8. h4 {[%clk 0:02:56.3]} 8... Rg8
{[%clk 0:02:38.5]} 9. hxg5 {[%clk 0:02:55.7]} 9... hxg5 {[%clk 0:02:39.4]} 10.
Ngf3 {[%clk 0:02:53.6]} 10... Nc6 {[%clk 0:02:38.7]} 11. a3 {[%clk 0:02:43.1]}
11... g4 {[%clk 0:02:37.9]} 12. Nh2 {[%clk 0:02:28.7]} 12... Qg5 {[%clk
0:02:37.4]} 13. Ne4 {[%clk 0:02:27.2]} 13... Qg7 {[%clk 0:02:25.4]} 14. Bc4
{[%clk 0:02:13]} 14... Nxe5 {[%clk 0:02:06.5]} 15. Bxd5 {[%clk 0:02:11.7]} 15...
exd5 {[%clk 0:02:07.4]} 16. Qxd4 {[%clk 0:02:10.7]} 16... dxe4 {[%clk
0:01:37.7]} 17. Bxe5 {[%clk 0:02:10.2]} 17... Qg6 {[%clk 0:01:35.6]} 18. O-O-O
{[%clk 0:02:08.7]} 18... f5 {[%clk 0:01:31]} 19. Nf1 {[%clk 0:02:04.9]} 19...
Qb6 {[%clk 0:01:30.2]} 20. Qxb6 {[%clk 0:02:01.2]} 20... axb6 {[%clk 0:01:29.3]}
21. Ne3 {[%clk 0:02:01]} 21... Ra5 {[%clk 0:01:22]} 22. Bc3 {[%clk 0:01:28.1]}
22... Rc5 {[%clk 0:01:17.2]} 23. Bd4 {[%clk 0:01:27.1]} 23... d6 {[%clk
0:01:09.8]} 24. Bxc5 {[%clk 0:01:22.1]} 24... bxc5 {[%clk 0:01:10.7]} 25. Rh5
{[%clk 0:01:20.5]} 25... f4 {[%clk 0:01:08.6]} 26. Nd5 {[%clk 0:01:16.4]} 26...
Bg7 {[%clk 0:00:44.7]} 27. Nxf4 {[%clk 0:01:06.3]} 27... Be5 {[%clk 0:00:43.6]}
28. g3 {[%clk 0:01:05.2]} 28... Bd7 {[%clk 0:00:37.4]} 29. Re1 {[%clk
0:00:52.1]} 29... Bc6 {[%clk 0:00:37.2]} 30. Ng2 {[%clk 0:00:48]} 30... Rf8
{[%clk 0:00:36]} 31. Re2 {[%clk 0:00:47.2]} 31... Bd4 {[%clk 0:00:25.7]} 32. Nf4
{[%clk 0:00:39.5]} 32... Rf7 {[%clk 0:00:21.1]} 33. c3 {[%clk 0:00:37.7]} 33...
Be5 {[%clk 0:00:21.2]} 34. Rxe5+ {[%clk 0:00:25.5]} 34... dxe5 {[%clk
0:00:20.8]} 35. Ng2 {[%clk 0:00:26.4]} 35... Ke7 {[%clk 0:00:15.7]} 36. Ne3
{[%clk 0:00:26.4]} 36... Bb5 {[%clk 0:00:15.3]} 37. Rd2 {[%clk 0:00:26.1]} 37...
Bd3 {[%clk 0:00:15]} 38. Nxg4 {[%clk 0:00:24.4]} 38... Ke6 {[%clk 0:00:15.3]}
39. Ne3 {[%clk 0:00:21.3]} 39... c4 {[%clk 0:00:15.7]} 40. Ng2 {[%clk
0:00:13.1]} 40... b5 {[%clk 0:00:15]} 41. Kd1 {[%clk 0:00:12.9]} 41... Kf5
{[%clk 0:00:12.3]} 42. Ke1 {[%clk 0:00:12.5]} 42... Kg4 {[%clk 0:00:12.3]} 43.
Nh4 {[%clk 0:00:08.3]} 43... e3 {[%clk 0:00:12.3]} 44. fxe3 {[%clk 0:00:07.3]}
44... Rf1# {[%clk 0:00:11.7]} 0-1

[Event "Early-Titled-Tuesday-Blitz-October-24-2023"]
[Site "Chess.com"]
[Date "2023.10.24"]
[Round "10"]
[White "the_chess_child"]
[Black "AvitalBor"]
[Result "1-0"]
[WhiteElo "2948"]
[BlackElo "2856"]
[TimeControl "180+1"]
[EndTime "9:53:22 PDT"]
[Termination "the_chess_child won on time"]

1. e4 {[%clk 0:03:00.9]} 1... e6 {[%clk 0:02:57.2]} 2. d3 {[%clk 0:03:01.1]}
2... d5 {[%clk 0:02:58.1]} 3. Nd2 {[%clk 0:03:01.7]} 3... Nf6 {[%clk 0:02:57.5]}
4. Ngf3 {[%clk 0:03:02.3]} 4... c5 {[%clk 0:02:57.5]} 5. g3 {[%clk 0:03:01.5]}
5... Nc6 {[%clk 0:02:57.4]} 6. Bg2 {[%clk 0:03:02.2]} 6... Be7 {[%clk
0:02:53.7]} 7. O-O {[%clk 0:03:02.7]} 7... Qc7 {[%clk 0:02:53.3]} 8. Re1 {[%clk
0:03:02.9]} 8... b5 {[%clk 0:02:51.6]} 9. e5 {[%clk 0:02:57.9]} 9... Nd7 {[%clk
0:02:51.3]} 10. Qe2 {[%clk 0:02:58.5]} 10... g5 {[%clk 0:02:44.9]} 11. h3 {[%clk
0:02:56.9]} 11... Bb7 {[%clk 0:02:36.4]} 12. Nf1 {[%clk 0:02:55.6]} 12... Rg8
{[%clk 0:02:34]} 13. g4 {[%clk 0:02:50]} 13... Nd4 {[%clk 0:01:56.2]} 14. Nxd4
{[%clk 0:02:47.2]} 14... cxd4 {[%clk 0:01:57.1]} 15. Nh2 {[%clk 0:02:17.3]}
15... Rc8 {[%clk 0:01:54.4]} 16. Nf3 {[%clk 0:02:17]} 16... Qb6 {[%clk
0:01:54.6]} 17. Qd1 {[%clk 0:02:01.8]} 17... b4 {[%clk 0:01:48.7]} 18. Bd2
{[%clk 0:01:58.6]} 18... a5 {[%clk 0:01:46.3]} 19. a3 {[%clk 0:01:55.8]} 19...
bxa3 {[%clk 0:01:36.5]} 20. bxa3 {[%clk 0:01:56.7]} 20... Bc6 {[%clk 0:01:31.6]}
21. Qb1 {[%clk 0:01:50.3]} 21... Qa7 {[%clk 0:00:56.8]} 22. Qb2 {[%clk 0:01:48]}
22... Rb8 {[%clk 0:00:56.4]} 23. Qa2 {[%clk 0:01:47.6]} 23... Ba4 {[%clk
0:00:55.4]} 24. Rab1 {[%clk 0:01:47.6]} 24... Rc8 {[%clk 0:00:53.6]} 25. Rb2
{[%clk 0:01:38.4]} 25... Kf8 {[%clk 0:00:49.6]} 26. Reb1 {[%clk 0:01:37.3]}
26... Rc7 {[%clk 0:00:49.8]} 27. Qa1 {[%clk 0:01:31.8]} 27... h6 {[%clk
0:00:47.7]} 28. Nxd4 {[%clk 0:01:27.7]} 28... Kg7 {[%clk 0:00:43.1]} 29. Be3
{[%clk 0:01:25.3]} 29... Bc5 {[%clk 0:00:39.1]} 30. c3 {[%clk 0:01:15.4]} 30...
Nxe5 {[%clk 0:00:37.4]} 31. Nxe6+ {[%clk 0:01:05.7]} 31... fxe6 {[%clk
0:00:38.3]} 32. d4 {[%clk 0:01:01.3]} 32... Nc4 {[%clk 0:00:36.2]} 33. dxc5
{[%clk 0:01:00.6]} 33... Nxe3 {[%clk 0:00:33.7]} 34. fxe3 {[%clk 0:01:00.9]}
34... Qxc5 {[%clk 0:00:33.8]} 35. c4 {[%clk 0:00:48.8]} 35... Qxe3+ {[%clk
0:00:28.5]} 36. Kh1 {[%clk 0:00:47.5]} 36... d4 {[%clk 0:00:23.1]} 37. Re1
{[%clk 0:00:37.8]} 37... Qc3 {[%clk 0:00:22.7]} 38. Rxe6 {[%clk 0:00:32.3]}
38... Rb8 {[%clk 0:00:12.7]} 39. Qb1 {[%clk 0:00:11.3]} 39... Qxb2 {[%clk
0:00:12.8]} 40. Qg6+ {[%clk 0:00:11]} 40... Kh8 {[%clk 0:00:13]} 41. Qxh6+
{[%clk 0:00:11.1]} 41... Rh7 {[%clk 0:00:12.3]} 42. Qf6+ {[%clk 0:00:10.4]}
42... Rg7 {[%clk 0:00:12.1]} 43. Qh6+ {[%clk 0:00:10.6]} 43... Kg8 {[%clk
0:00:12.2]} 44. Bd5 {[%clk 0:00:09.5]} 1-0

[Event "Early-Titled-Tuesday-Blitz-October-24-2023"]
[Site "Chess.com"]
[Date "2023.10.24"]
[Round "10"]
[White "Mr_Lion22"]
[Black "dawid498"]
[Result "0-1"]
[WhiteElo "2480"]
[BlackElo "2667"]
[TimeControl "180+1"]
[EndTime "9:53:26 PDT"]
[Termination "dawid498 won by checkmate"]

1. d4 {[%clk 0:03:00.9]} 1... d5 {[%clk 0:02:57]} 2. c4 {[%clk 0:03:01.3]} 2...
e6 {[%clk 0:02:57.2]} 3. Nc3 {[%clk 0:03:01.6]} 3... Nf6 {[%clk 0:02:57.6]} 4.
cxd5 {[%clk 0:03:01.5]} 4... exd5 {[%clk 0:02:57.7]} 5. Bg5 {[%clk 0:03:02.1]}
5... Be7 {[%clk 0:02:57.7]} 6. e3 {[%clk 0:03:02.6]} 6... c6 {[%clk 0:02:55.2]}
7. Bd3 {[%clk 0:03:02.2]} 7... Nbd7 {[%clk 0:02:52.7]} 8. Nf3 {[%clk 0:03:01.7]}
8... Nh5 {[%clk 0:02:52.4]} 9. Bxe7 {[%clk 0:03:01.1]} 9... Qxe7 {[%clk
0:02:53.3]} 10. Qc2 {[%clk 0:02:57.6]} 10... g6 {[%clk 0:02:53.1]} 11. O-O-O
{[%clk 0:02:57.7]} 11... Nb6 {[%clk 0:02:52.2]} 12. Kb1 {[%clk 0:02:56.4]} 12...
Be6 {[%clk 0:02:48.1]} 13. Ne5 {[%clk 0:02:55.9]} 13... O-O-O {[%clk 0:02:44.7]}
14. Nb5 {[%clk 0:02:54.6]} 14... Kb8 {[%clk 0:02:43.4]} 15. Nc3 {[%clk
0:02:11.6]} 15... Ng7 {[%clk 0:02:38.7]} 16. Rc1 {[%clk 0:02:10.7]} 16... Bf5
{[%clk 0:02:38.8]} 17. Ka1 {[%clk 0:02:09.3]} 17... Bxd3 {[%clk 0:02:36]} 18.
Nxd3 {[%clk 0:02:10.2]} 18... Nf5 {[%clk 0:02:31.4]} 19. Na4 {[%clk 0:02:06.2]}
19... Nd6 {[%clk 0:02:26]} 20. Nac5 {[%clk 0:01:58.9]} 20... Nbc4 {[%clk
0:01:54.2]} 21. b3 {[%clk 0:01:50.5]} 21... Nb6 {[%clk 0:01:54]} 22. a4 {[%clk
0:01:48.3]} 22... Nd7 {[%clk 0:01:49.2]} 23. Rb1 {[%clk 0:01:27]} 23... Nxc5
{[%clk 0:01:48.2]} 24. Nxc5 {[%clk 0:01:27.9]} 24... f5 {[%clk 0:01:43.8]} 25.
b4 {[%clk 0:01:28]} 25... Nc4 {[%clk 0:01:08.3]} 26. Qc3 {[%clk 0:01:26.7]}
26... b6 {[%clk 0:01:06.3]} 27. Nd3 {[%clk 0:01:19.2]} 27... Kb7 {[%clk
0:00:49.3]} 28. Rhc1 {[%clk 0:01:19.2]} 28... Rc8 {[%clk 0:00:37.1]} 29. Ka2
{[%clk 0:01:07.1]} 29... Rc7 {[%clk 0:00:36.9]} 30. Rb3 {[%clk 0:00:50.7]} 30...
Rhc8 {[%clk 0:00:33.8]} 31. a5 {[%clk 0:00:36.8]} 31... Qe4 {[%clk 0:00:24.3]}
32. g3 {[%clk 0:00:32.4]} 32... g5 {[%clk 0:00:22.9]} 33. b5 {[%clk 0:00:23.2]}
33... Nxa5 {[%clk 0:00:15.7]} 34. bxc6+ {[%clk 0:00:20.4]} 34... Rxc6 {[%clk
0:00:16.6]} 35. Nc5+ {[%clk 0:00:15.4]} 35... Rxc5 {[%clk 0:00:15.6]} 36. dxc5
{[%clk 0:00:15.9]} 36... Nxb3 {[%clk 0:00:14.7]} 37. c6+ {[%clk 0:00:14.7]}
37... Ka8 {[%clk 0:00:13.5]} 38. Kxb3 {[%clk 0:00:08.9]} 38... Qe6 {[%clk
0:00:11.3]} 39. Kb4 {[%clk 0:00:04.6]} 39... Qd6+ {[%clk 0:00:11.4]} 40. Kb5
{[%clk 0:00:05.1]} 40... h5 {[%clk 0:00:06.2]} 41. Ka6 {[%clk 0:00:04.6]} 41...
Qc7 {[%clk 0:00:03.5]} 42. Qf6 {[%clk 0:00:04]} 42... b5 {[%clk 0:00:03.5]} 43.
Kxb5 {[%clk 0:00:02.8]} 43... Qb6+ {[%clk 0:00:03.7]} 44. Ka4 {[%clk 0:00:03.5]}
44... Rb8 {[%clk 0:00:03.5]} 45. Qd4 {[%clk 0:00:01.2]} 45... Qa6# {[%clk
0:00:03.8]} 0-1

[Event "Early-Titled-Tuesday-Blitz-October-24-2023"]
[Site "Chess.com"]
[Date "2023.10.24"]
[Round "10"]
[White "jaskol95"]
[Black "GMSrinath"]
[Result "0-1"]
[WhiteElo "2556"]
[BlackElo "2809"]
[TimeControl "180+1"]
[EndTime "9:53:27 PDT"]
[Termination "GMSrinath won by checkmate"]

1. e4 {[%clk 0:03:00.4]} 1... c5 {[%clk 0:02:59.7]} 2. Nf3 {[%clk 0:03:00.4]}
2... d6 {[%clk 0:03:00.4]} 3. Bb5+ {[%clk 0:03:00]} 3... Bd7 {[%clk 0:02:59.8]}
4. a4 {[%clk 0:02:59]} 4... Nf6 {[%clk 0:03:00.1]} 5. Nc3 {[%clk 0:02:59]} 5...
g6 {[%clk 0:03:00.4]} 6. O-O {[%clk 0:02:58.8]} 6... Bg7 {[%clk 0:03:01]} 7. Re1
{[%clk 0:02:59.3]} 7... O-O {[%clk 0:03:01.3]} 8. h3 {[%clk 0:02:59.2]} 8... Nc6
{[%clk 0:03:01.2]} 9. Bxc6 {[%clk 0:02:58.7]} 9... Bxc6 {[%clk 0:03:01.2]} 10.
d3 {[%clk 0:02:59.4]} 10... b6 {[%clk 0:02:59.6]} 11. Bg5 {[%clk 0:02:53.9]}
11... a6 {[%clk 0:02:59.9]} 12. e5 {[%clk 0:02:42.4]} 12... dxe5 {[%clk
0:02:59.3]} 13. Nxe5 {[%clk 0:02:42.7]} 13... Bb7 {[%clk 0:02:58.7]} 14. Qd2
{[%clk 0:02:28.6]} 14... Qd6 {[%clk 0:02:46.8]} 15. Nc4 {[%clk 0:02:21.2]} 15...
Qc6 {[%clk 0:02:46]} 16. f3 {[%clk 0:02:21.6]} 16... e6 {[%clk 0:02:44.2]} 17.
Kh1 {[%clk 0:02:11.8]} 17... Rad8 {[%clk 0:02:42.6]} 18. Ne4 {[%clk 0:02:00.7]}
18... Nxe4 {[%clk 0:02:33.4]} 19. fxe4 {[%clk 0:02:01.6]} 19... Rd7 {[%clk
0:02:32.3]} 20. Bh6 {[%clk 0:01:54.7]} 20... f6 {[%clk 0:02:25.7]} 21. Bxg7
{[%clk 0:01:48.4]} 21... Kxg7 {[%clk 0:02:26.6]} 22. Qf2 {[%clk 0:01:42.3]}
22... e5 {[%clk 0:02:25.5]} 23. Rf1 {[%clk 0:01:39.8]} 23... Qe6 {[%clk
0:02:23.4]} 24. Ne3 {[%clk 0:01:26.8]} 24... h5 {[%clk 0:02:18]} 25. Rad1 {[%clk
0:01:21.7]} 25... Kh7 {[%clk 0:02:11.4]} 26. c4 {[%clk 0:01:20.6]} 26... Rdf7
{[%clk 0:02:08.9]} 27. Nd5 {[%clk 0:01:08.7]} 27... f5 {[%clk 0:02:07.1]} 28.
Qh4 {[%clk 0:01:01.9]} 28... f4 {[%clk 0:02:06.5]} 29. Qg5 {[%clk 0:00:56.5]}
29... f3 {[%clk 0:01:58.3]} 30. Kh2 {[%clk 0:00:46.2]} 30... Bc8 {[%clk
0:01:42.8]} 31. Qg3 {[%clk 0:00:35.4]} 31... fxg2 {[%clk 0:01:22]} 32. Kxg2
{[%clk 0:00:35.7]} 32... Bb7 {[%clk 0:01:08.9]} 33. Rxf7+ {[%clk 0:00:33.4]}
33... Qxf7 {[%clk 0:01:05.6]} 34. h4 {[%clk 0:00:25.8]} 34... Bc8 {[%clk
0:00:59.4]} 35. Rg1 {[%clk 0:00:20.3]} 35... Bg4 {[%clk 0:00:58.1]} 36. Kh2
{[%clk 0:00:18.9]} 36... Be2 {[%clk 0:00:48]} 37. Rg2 {[%clk 0:00:17.5]} 37...
Bg4 {[%clk 0:00:35.2]} 38. Qxe5 {[%clk 0:00:16.3]} 38... Qf1 {[%clk 0:00:28.3]}
39. Qg3 {[%clk 0:00:12.8]} 39... Rf7 {[%clk 0:00:24.3]} 40. e5 {[%clk
0:00:13.1]} 40... Rf3 {[%clk 0:00:24.3]} 41. Nf6+ {[%clk 0:00:11.5]} 41... Kh8
{[%clk 0:00:19.4]} 42. Rg1 {[%clk 0:00:02.9]} 42... Qe2+ {[%clk 0:00:13.9]} 43.
Rg2 {[%clk 0:00:03.4]} 43... Qe3 {[%clk 0:00:14]} 44. Nxg4 {[%clk 0:00:02.1]}
44... hxg4 {[%clk 0:00:14.1]} 45. Qxg4 {[%clk 0:00:02.5]} 45... Qxe5+ {[%clk
0:00:14.8]} 46. Kg1 {[%clk 0:00:02.4]} 46... Re3 {[%clk 0:00:11.7]} 47. Qxg6
{[%clk 0:00:02.4]} 47... Re1+ {[%clk 0:00:11.8]} 48. Kf2 {[%clk 0:00:02.7]}
48... Qe3# {[%clk 0:00:12.3]} 0-1